[Event "Live Chess"]
[Site "Chess.com"]
[Date "2023.05.21"]
[Round "-"]
[White "JoeyCage"]
[Black "LiamBellwood"]
[Result "1-0"]
[WhiteElo "2292"]
[BlackElo "1899"]
[TimeControl "300"]
[EndTime "4:33:28 PDT"]
[Termination "JoeyCage won by resignation"]

1. e4 {[%clk 0:04:58.1]} 1... e6 {[%clk 0:04:59.9]} 2. d4 {[%clk 0:04:56.8]}
2... d5 {[%clk 0:04:59.8]} 3. Nc3 {[%clk 0:04:55.5]} 3... Nf6 {[%clk 0:04:58.7]}
4. e5 {[%clk 0:04:53.7]} 4... Ng8 {[%clk 0:04:58.3]} 5. Nce2 {[%clk 0:04:51.9]}
5... c5 {[%clk 0:04:57.9]} 6. c3 {[%clk 0:04:50.7]} 6... Nc6 {[%clk 0:04:57.8]}
7. Nf3 {[%clk 0:04:49.1]} 7... Bd7 {[%clk 0:04:56.2]} 8. g3 {[%clk 0:04:46.5]}
8... Nge7 {[%clk 0:04:55.7]} 9. Bg2 {[%clk 0:04:45]} 9... Nf5 {[%clk 0:04:55.3]}
10. O-O {[%clk 0:04:42.9]} 10... Qb6 {[%clk 0:04:54.5]} 11. a3 {[%clk
0:04:41.1]} 11... Be7 {[%clk 0:04:40.9]} 12. g4 {[%clk 0:04:38.6]} 12... Nh4
{[%clk 0:04:38.2]} 13. Nxh4 {[%clk 0:04:37.3]} 13... Bxh4 {[%clk 0:04:38.1]} 14.
f4 {[%clk 0:04:36]} 14... Be7 {[%clk 0:04:36.7]} 15. Kh1 {[%clk 0:04:34.1]}
15... c4 {[%clk 0:04:35]} 16. f5 {[%clk 0:04:32.4]} 16... O-O-O {[%clk
0:04:31.7]} 17. Qc2 {[%clk 0:04:26.2]} 17... Na5 {[%clk 0:04:19.6]} 18. Be3
{[%clk 0:04:17.4]} 18... h5 {[%clk 0:04:03.2]} 19. f6 {[%clk 0:04:11.7]} 19...
gxf6 {[%clk 0:03:57.7]} 20. exf6 {[%clk 0:04:10.4]} 20... Bd6 {[%clk 0:03:51.3]}
21. g5 {[%clk 0:04:09]} 21... Nb3 {[%clk 0:03:45.7]} 22. Rae1 {[%clk 0:04:05.9]}
22... Ba4 {[%clk 0:03:25.1]} 23. Qb1 {[%clk 0:04:04]} 23... Qc7 {[%clk
0:03:18.8]} 24. h4 {[%clk 0:03:59.3]} 24... Bg3 {[%clk 0:03:16]} 25. Nxg3 {[%clk
0:03:54.4]} 25... Qxg3 {[%clk 0:03:14.6]} 26. Bf2 {[%clk 0:03:53.3]} 26... Qd6
{[%clk 0:03:02.9]} 27. Qd1 {[%clk 0:03:50.9]} 27... Bc6 {[%clk 0:02:54.8]} 28.
Qe2 {[%clk 0:03:44.3]} 28... Rde8 {[%clk 0:02:44.8]} 29. Qe3 {[%clk 0:03:42.8]}
29... b6 {[%clk 0:02:32.6]} 30. Bg3 {[%clk 0:03:41.1]} 30... Qd7 {[%clk
0:02:32.2]} 31. Qe5 {[%clk 0:03:31.8]} 31... Kb7 {[%clk 0:02:24.8]} 32. Re2
{[%clk 0:03:29.7]} 32... Rhg8 {[%clk 0:02:04.1]} 33. Bf3 {[%clk 0:03:27.1]}
33... Rh8 {[%clk 0:02:02.9]} 34. Rff2 {[%clk 0:03:20.8]} 34... Na5 {[%clk
0:02:01.6]} 35. Re1 {[%clk 0:03:19]} 35... Ka6 {[%clk 0:01:59.4]} 36. Bd1 {[%clk
0:03:09.3]} 36... Nb7 {[%clk 0:01:56.1]} 37. Bc2 {[%clk 0:03:06.8]} 37... Rd8
{[%clk 0:01:39.3]} 38. g6 {[%clk 0:03:03.9]} 38... fxg6 {[%clk 0:01:39.2]} 39.
Qxe6 {[%clk 0:03:00.7]} 39... Qxe6 {[%clk 0:01:32.9]} 40. Rxe6 {[%clk
0:02:59.1]} 40... Bd7 {[%clk 0:01:32.4]} 41. Re7 {[%clk 0:02:53.7]} 41... Bg4
{[%clk 0:01:23.1]} 42. Bxg6 {[%clk 0:02:50.3]} 42... Nd6 {[%clk 0:01:20.7]} 43.
f7 {[%clk 0:02:42.8]} 43... Rhf8 {[%clk 0:01:17.4]} 44. Bxd6 {[%clk 0:02:35.6]}
44... Rxd6 {[%clk 0:01:15.8]} 45. Re8 {[%clk 0:02:34.3]} 1-0

[Event "Live Chess"]
[Site "Chess.com"]
[Date "2023.05.21"]
[Round "-"]
[White "GEMdzq"]
[Black "Tilbs_12"]
[Result "1-0"]
[WhiteElo "2278"]
[BlackElo "1582"]
[TimeControl "300"]
[EndTime "4:33:33 PDT"]
[Termination "GEMdzq won by checkmate"]

1. e4 {[%clk 0:04:59]} 1... c6 {[%clk 0:04:58.8]} 2. d4 {[%clk 0:04:57.4]} 2...
d5 {[%clk 0:04:57.9]} 3. e5 {[%clk 0:04:57]} 3... c5 {[%clk 0:04:57.1]} 4. dxc5
{[%clk 0:04:55.2]} 4... Nc6 {[%clk 0:04:56.4]} 5. Nf3 {[%clk 0:04:53.4]} 5...
Bg4 {[%clk 0:04:54.2]} 6. Bb5 {[%clk 0:04:50.8]} 6... e6 {[%clk 0:04:50.4]} 7.
Be3 {[%clk 0:04:49.4]} 7... Ne7 {[%clk 0:04:43.5]} 8. O-O {[%clk 0:04:44.7]}
8... Ng6 {[%clk 0:04:35.5]} 9. Bd4 {[%clk 0:04:41.4]} 9... a6 {[%clk 0:04:26.5]}
10. Bxc6+ {[%clk 0:04:36.5]} 10... bxc6 {[%clk 0:04:25.5]} 11. c3 {[%clk
0:04:33.4]} 11... a5 {[%clk 0:04:21.9]} 12. b4 {[%clk 0:04:27]} 12... axb4
{[%clk 0:04:20.3]} 13. cxb4 {[%clk 0:04:26.9]} 13... Qc7 {[%clk 0:04:19]} 14.
Nbd2 {[%clk 0:04:20]} 14... Be7 {[%clk 0:04:07.8]} 15. Re1 {[%clk 0:04:10.4]}
15... Bg5 {[%clk 0:03:55.8]} 16. Qb3 {[%clk 0:04:02.5]} 16... Bxd2 {[%clk
0:03:52.9]} 17. Nxd2 {[%clk 0:04:02.4]} 17... Ne7 {[%clk 0:03:38.1]} 18. h3
{[%clk 0:03:53]} 18... Bh5 {[%clk 0:03:32.3]} 19. a4 {[%clk 0:03:40.3]} 19...
O-O {[%clk 0:03:30.7]} 20. g4 {[%clk 0:03:31.8]} 20... Bg6 {[%clk 0:03:28.6]}
21. b5 {[%clk 0:03:27.9]} 21... cxb5 {[%clk 0:03:24.1]} 22. axb5 {[%clk
0:03:27.8]} 22... Rab8 {[%clk 0:03:04.7]} 23. b6 {[%clk 0:02:58.1]} 23... Qc6
{[%clk 0:02:52.3]} 24. Ra7 {[%clk 0:02:56.3]} 24... Rfe8 {[%clk 0:02:41.6]} 25.
Rea1 {[%clk 0:02:51.9]} 25... h5 {[%clk 0:02:32.6]} 26. Qa4 {[%clk 0:02:36.4]}
26... Qxa4 {[%clk 0:02:30.8]} 27. R1xa4 {[%clk 0:02:36.3]} 27... h4 {[%clk
0:02:29.1]} 28. Rc7 {[%clk 0:02:29]} 28... Bd3 {[%clk 0:02:10.6]} 29. c6 {[%clk
0:02:21.8]} 29... Bb5 {[%clk 0:02:01.2]} 30. Raa7 {[%clk 0:02:13]} 30... Nxc6
{[%clk 0:01:53.2]} 31. Rxf7 {[%clk 0:02:08.3]} 31... Nxd4 {[%clk 0:01:51.7]} 32.
Rxg7+ {[%clk 0:02:07.1]} 32... Kh8 {[%clk 0:01:50.7]} 33. Rh7+ {[%clk
0:02:05.9]} 33... Kg8 {[%clk 0:01:49.9]} 34. Rag7+ {[%clk 0:01:53.7]} 34... Kf8
{[%clk 0:01:48.7]} 35. Rf7+ {[%clk 0:01:37]} 35... Kg8 {[%clk 0:01:47.4]} 36. g5
{[%clk 0:01:17.7]} 36... Bd3 {[%clk 0:01:40.9]} 37. Rhg7+ {[%clk 0:01:14]} 37...
Kh8 {[%clk 0:01:39.7]} 38. g6 {[%clk 0:01:04.9]} 38... Rg8 {[%clk 0:01:38.6]}
39. Rh7# {[%clk 0:01:03.8]} 1-0

[Event "Live Chess"]
[Site "Chess.com"]
[Date "2023.05.21"]
[Round "-"]
[White "profpirate4"]
[Black "EdenHazard8"]
[Result "1-0"]
[WhiteElo "1337"]
[BlackElo "1927"]
[TimeControl "300"]
[EndTime "4:33:33 PDT"]
[Termination "profpirate4 won by resignation"]

1. d4 {[%clk 0:04:57.6]} 1... e5 {[%clk 0:04:59]} 2. dxe5 {[%clk 0:04:56.6]}
2... Nc6 {[%clk 0:04:58.1]} 3. Nf3 {[%clk 0:04:55.4]} 3... Qe7 {[%clk
0:04:57.6]} 4. Bf4 {[%clk 0:04:52]} 4... Qb4+ {[%clk 0:04:56.4]} 5. Bd2 {[%clk
0:04:46.2]} 5... Qxb2 {[%clk 0:04:56.3]} 6. Nc3 {[%clk 0:04:45.2]} 6... Bb4
{[%clk 0:04:53.5]} 7. Rb1 {[%clk 0:04:40.2]} 7... Qa3 {[%clk 0:04:52.9]} 8. Nb5
{[%clk 0:04:36.6]} 8... Qa5 {[%clk 0:04:52.8]} 9. Nbd4 {[%clk 0:04:25.4]} 9...
Nxd4 {[%clk 0:04:50.1]} 10. Nxd4 {[%clk 0:04:24.2]} 10... Bxd2+ {[%clk
0:04:49.8]} 11. Qxd2 {[%clk 0:04:22.2]} 11... Qxe5 {[%clk 0:04:48.9]} 12. g3
{[%clk 0:04:15.8]} 12... d5 {[%clk 0:04:46.3]} 13. Bg2 {[%clk 0:04:13.9]} 13...
c6 {[%clk 0:04:45.2]} 14. O-O {[%clk 0:04:12.2]} 14... Nf6 {[%clk 0:04:43.8]}
15. Rfe1 {[%clk 0:04:09.8]} 15... O-O {[%clk 0:04:42.2]} 16. Nf3 {[%clk
0:04:07.9]} 16... Qc7 {[%clk 0:04:39.9]} 17. Qd3 {[%clk 0:04:04.6]} 17... Ne4
{[%clk 0:04:39]} 18. Rb4 {[%clk 0:03:52.4]} 18... Bf5 {[%clk 0:04:37.1]} 19. Qe3
{[%clk 0:03:45.2]} 19... Rae8 {[%clk 0:04:33.5]} 20. Qxa7 {[%clk 0:03:39.1]}
20... Ra8 {[%clk 0:04:09.4]} 21. Qxb7 {[%clk 0:03:36.8]} 21... Qxb7 {[%clk
0:04:07.8]} 22. Rxb7 {[%clk 0:03:35.4]} 22... Rxa2 {[%clk 0:04:07.3]} 23. Nd4
{[%clk 0:03:28.9]} 23... Bg6 {[%clk 0:03:58.7]} 24. Nxc6 {[%clk 0:03:17.1]}
24... Rxc2 {[%clk 0:03:57.2]} 25. Ne7+ {[%clk 0:03:14.7]} 25... Kh8 {[%clk
0:03:55.5]} 26. Reb1 {[%clk 0:03:09.6]} 26... Nc3 {[%clk 0:03:38.8]} 27. Rb8
{[%clk 0:03:03.9]} 27... Nxe2+ {[%clk 0:03:37.2]} 28. Kf1 {[%clk 0:03:00]} 1-0

[Event "Live Chess"]
[Site "Chess.com"]
[Date "2023.05.21"]
[Round "-"]
[White "raminguy"]
[Black "davigator"]
[Result "0-1"]
[WhiteElo "1958"]
[BlackElo "2328"]
[TimeControl "300"]
[EndTime "4:33:40 PDT"]
[Termination "davigator won by resignation"]

1. d4 {[%clk 0:04:59]} 1... Nf6 {[%clk 0:04:56.2]} 2. Nc3 {[%clk 0:04:58.1]}
2... d5 {[%clk 0:04:54.5]} 3. Bf4 {[%clk 0:04:57.7]} 3... c5 {[%clk 0:04:52.1]}
4. e4 {[%clk 0:04:56.2]} 4... cxd4 {[%clk 0:04:50.6]} 5. Qxd4 {[%clk 0:04:53.3]}
5... Nc6 {[%clk 0:04:50]} 6. Bb5 {[%clk 0:04:47.3]} 6... Bd7 {[%clk 0:04:49.1]}
7. Bxc6 {[%clk 0:04:45]} 7... Bxc6 {[%clk 0:04:47.9]} 8. exd5 {[%clk 0:04:38.5]}
8... Nxd5 {[%clk 0:04:45.1]} 9. O-O-O {[%clk 0:04:34.7]} 9... Nxf4 {[%clk
0:04:41]} 10. Qxf4 {[%clk 0:04:33]} 10... Qb8 {[%clk 0:04:39.8]} 11. Qxb8+
{[%clk 0:04:28.5]} 11... Rxb8 {[%clk 0:04:38.3]} 12. Nf3 {[%clk 0:04:27.9]}
12... f6 {[%clk 0:04:36.4]} 13. Rhe1 {[%clk 0:04:25.2]} 13... e5 {[%clk
0:04:31.2]} 14. Nd4 {[%clk 0:04:07.8]} 14... Bxg2 {[%clk 0:04:26.7]} 15. f4
{[%clk 0:04:07.3]} 15... Bb4 {[%clk 0:04:18.2]} 16. fxe5 {[%clk 0:04:05.7]}
16... O-O {[%clk 0:04:16.1]} 17. e6 {[%clk 0:04:02.2]} 17... Bxc3 {[%clk
0:04:14.4]} 18. bxc3 {[%clk 0:04:01]} 18... Rfe8 {[%clk 0:04:06.6]} 19. Nf5
{[%clk 0:03:58.6]} 19... Bh3 {[%clk 0:04:03.7]} 20. Rd5 {[%clk 0:03:45]} 20...
Bxf5 {[%clk 0:04:01.7]} 21. Rxf5 {[%clk 0:03:44.9]} 21... Re7 {[%clk 0:04:00.8]}
22. Ra5 {[%clk 0:03:39.6]} 22... b6 {[%clk 0:03:58.7]} 23. Rd5 {[%clk
0:03:36.9]} 23... Rbe8 {[%clk 0:03:56.6]} 24. Rd6 {[%clk 0:03:36.1]} 24... g6
{[%clk 0:03:54.5]} 25. Kb2 {[%clk 0:03:33.8]} 25... f5 {[%clk 0:03:52.8]} 26.
Rd7 {[%clk 0:03:31.5]} 26... Kg7 {[%clk 0:03:51.6]} 27. Re5 {[%clk 0:03:21.5]}
27... Kf6 {[%clk 0:03:50.2]} 28. Re2 {[%clk 0:03:14.6]} 28... g5 {[%clk
0:03:40.8]} 29. a4 {[%clk 0:03:10.5]} 29... a5 {[%clk 0:03:36.4]} 30. Rd6 {[%clk
0:03:07]} 30... Rxe6 {[%clk 0:03:33.9]} 31. Rexe6+ {[%clk 0:03:04]} 31... Rxe6
{[%clk 0:03:32.4]} 32. Rd7 {[%clk 0:03:03.8]} 32... h5 {[%clk 0:03:30.6]} 33.
Rh7 {[%clk 0:03:01.8]} 33... h4 {[%clk 0:03:28.9]} 34. Rh6+ {[%clk 0:02:58.8]}
34... Ke5 {[%clk 0:03:27.9]} 35. Rh7 {[%clk 0:02:56.2]} 35... Kf4 {[%clk
0:03:24.8]} 0-1

[Event "Live Chess"]
[Site "Chess.com"]
[Date "2023.05.21"]
[Round "-"]
[White "peter-785"]
[Black "ItsNot_Jasper"]
[Result "0-1"]
[WhiteElo "1182"]
[BlackElo "1395"]
[TimeControl "300"]
[EndTime "4:33:52 PDT"]
[Termination "ItsNot_Jasper won by resignation"]

1. e4 {[%clk 0:04:58.5]} 1... e5 {[%clk 0:04:59.4]} 2. Nf3 {[%clk 0:04:57.6]}
2... Nf6 {[%clk 0:04:57.5]} 3. Nc3 {[%clk 0:04:54.1]} 3... Nc6 {[%clk
0:04:55.8]} 4. d3 {[%clk 0:04:51.8]} 4... Bb4 {[%clk 0:04:53.7]} 5. Be2 {[%clk
0:04:44.7]} 5... d5 {[%clk 0:04:52.7]} 6. O-O {[%clk 0:04:41]} 6... Bxc3 {[%clk
0:04:49.5]} 7. bxc3 {[%clk 0:04:39.7]} 7... dxe4 {[%clk 0:04:47.8]} 8. dxe4
{[%clk 0:04:36.6]} 8... Qxd1 {[%clk 0:04:45.6]} 9. Rxd1 {[%clk 0:04:35.2]} 9...
Nxe4 {[%clk 0:04:44.8]} 10. Bb2 {[%clk 0:04:15]} 10... O-O {[%clk 0:04:42.6]}
11. c4 {[%clk 0:04:11.9]} 11... f6 {[%clk 0:04:38.7]} 12. Nd2 {[%clk 0:04:04.7]}
12... Nxd2 {[%clk 0:04:36.8]} 13. Rxd2 {[%clk 0:04:03.6]} 13... Be6 {[%clk
0:04:36.7]} 14. c5 {[%clk 0:04:01]} 14... Rad8 {[%clk 0:04:34.5]} 15. Rxd8
{[%clk 0:03:51.1]} 15... Rxd8 {[%clk 0:04:34.4]} 16. a3 {[%clk 0:03:39.2]} 16...
Nd4 {[%clk 0:04:21.8]} 17. Bxd4 {[%clk 0:03:36.7]} 17... Rxd4 {[%clk 0:04:20.9]}
18. Rd1 {[%clk 0:03:07.3]} 18... Rxd1+ {[%clk 0:04:13.8]} 19. Bxd1 {[%clk
0:03:06]} 19... b6 {[%clk 0:04:12.5]} 20. cxb6 {[%clk 0:03:00.3]} 20... cxb6
{[%clk 0:04:12.4]} 21. Kf1 {[%clk 0:02:51]} 21... Kf7 {[%clk 0:04:10.2]} 22. Ke1
{[%clk 0:02:49.7]} 22... Ke7 {[%clk 0:04:09.5]} 23. Kd2 {[%clk 0:02:49.2]} 23...
Kd6 {[%clk 0:04:08.8]} 24. Kc3 {[%clk 0:02:42.8]} 24... Kc5 {[%clk 0:04:06.4]}
25. Be2 {[%clk 0:02:37.4]} 25... Bd5 {[%clk 0:04:02.1]} 26. f3 {[%clk
0:02:35.2]} 26... h6 {[%clk 0:03:56.3]} 27. h4 {[%clk 0:02:24.8]} 27... a5
{[%clk 0:03:37.1]} 28. g3 {[%clk 0:02:14.9]} 28... b5 {[%clk 0:03:28.9]} 29. Kb2
{[%clk 0:01:57.3]} 29... b4 {[%clk 0:03:23.2]} 30. axb4+ {[%clk 0:01:54.9]}
30... axb4 {[%clk 0:03:23.1]} 31. c3 {[%clk 0:01:49.3]} 31... bxc3+ {[%clk
0:03:20.3]} 32. Kxc3 {[%clk 0:01:47.1]} 32... Be6 {[%clk 0:03:16.7]} 33. Bd1
{[%clk 0:01:26.6]} 33... f5 {[%clk 0:03:12.3]} 34. Be2 {[%clk 0:01:18.4]} 34...
Kd5 {[%clk 0:02:59.8]} 35. Bc4+ {[%clk 0:01:15.1]} 35... Kd6 {[%clk 0:02:58.1]}
36. Bxe6 {[%clk 0:01:12.3]} 36... Kxe6 {[%clk 0:02:58]} 37. Kd3 {[%clk
0:01:11.6]} 37... Kd5 {[%clk 0:02:56.5]} 38. Ke3 {[%clk 0:01:09.8]} 38... e4
{[%clk 0:02:52]} 39. fxe4+ {[%clk 0:01:03.3]} 39... fxe4 {[%clk 0:02:49.4]} 40.
h5 {[%clk 0:00:58.6]} 40... Ke5 {[%clk 0:02:47.9]} 41. Ke2 {[%clk 0:00:52.4]}
41... Kd4 {[%clk 0:02:38.2]} 42. g4 {[%clk 0:00:45.2]} 42... e3 {[%clk
0:02:35.2]} 43. Ke1 {[%clk 0:00:42]} 43... Ke4 {[%clk 0:02:32.1]} 0-1

[Event "Live Chess"]
[Site "Chess.com"]
[Date "2023.05.21"]
[Round "-"]
[White "Sir_Sigmund"]
[Black "ChessTWSS"]
[Result "1-0"]
[WhiteElo "1920"]
[BlackElo "1617"]
[TimeControl "300"]
[EndTime "4:33:56 PDT"]
[Termination "Sir_Sigmund won by checkmate"]

1. e4 {[%clk 0:04:59.3]} 1... c5 {[%clk 0:04:58.5]} 2. f4 {[%clk 0:04:58]} 2...
Nc6 {[%clk 0:04:50.8]} 3. c3 {[%clk 0:04:56.6]} 3... e6 {[%clk 0:04:46.7]} 4.
Be2 {[%clk 0:04:55.7]} 4... d5 {[%clk 0:04:41.2]} 5. d3 {[%clk 0:04:54.7]} 5...
b6 {[%clk 0:04:36.3]} 6. Na3 {[%clk 0:04:50.7]} 6... Nf6 {[%clk 0:04:18]} 7. Nf3
{[%clk 0:04:49.1]} 7... g6 {[%clk 0:04:07.2]} 8. e5 {[%clk 0:04:47.4]} 8... Nd7
{[%clk 0:04:02.5]} 9. O-O {[%clk 0:04:45.5]} 9... Bg7 {[%clk 0:03:56.1]} 10. Nc2
{[%clk 0:04:31.7]} 10... O-O {[%clk 0:03:51]} 11. d4 {[%clk 0:04:29.8]} 11... a5
{[%clk 0:03:42.4]} 12. Be3 {[%clk 0:04:16.8]} 12... c4 {[%clk 0:03:35.9]} 13.
Qe1 {[%clk 0:04:11]} 13... b5 {[%clk 0:03:29.9]} 14. a3 {[%clk 0:04:09.9]} 14...
a4 {[%clk 0:03:20.9]} 15. h4 {[%clk 0:04:03.4]} 15... Ba6 {[%clk 0:03:14.7]} 16.
h5 {[%clk 0:03:48.3]} 16... gxh5 {[%clk 0:03:08.6]} 17. Ng5 {[%clk 0:03:40.8]}
17... h6 {[%clk 0:03:02.9]} 18. Nh3 {[%clk 0:03:38]} 18... f5 {[%clk 0:02:49.1]}
19. Bxh5 {[%clk 0:03:29]} 19... Qe7 {[%clk 0:02:39.6]} 20. Bf2 {[%clk
0:03:21.2]} 20... Kh7 {[%clk 0:02:11.2]} 21. Bh4 {[%clk 0:03:18.9]} 21... Bf6
{[%clk 0:02:05.9]} 22. exf6 {[%clk 0:03:14.5]} 22... Rxf6 {[%clk 0:01:55.4]} 23.
Nb4 {[%clk 0:03:03.7]} 23... Nxb4 {[%clk 0:01:52.4]} 24. axb4 {[%clk 0:03:03.6]}
24... Nf8 {[%clk 0:01:39.9]} 25. Qe5 {[%clk 0:02:41.6]} 25... Ng6 {[%clk
0:01:32.5]} 26. Qxf6 {[%clk 0:02:33.4]} 26... Qxf6 {[%clk 0:01:31.8]} 27. Bxf6
{[%clk 0:02:32]} 27... Rf8 {[%clk 0:01:22.7]} 28. Bxg6+ {[%clk 0:02:27.5]} 28...
Kxg6 {[%clk 0:01:21.6]} 29. Be5 {[%clk 0:02:27.1]} 29... Kh5 {[%clk 0:01:15.4]}
30. Rf3 {[%clk 0:02:15]} 30... Kg4 {[%clk 0:01:13.4]} 31. Kh2 {[%clk 0:02:12]}
31... Rg8 {[%clk 0:01:04.8]} 32. Rh1 {[%clk 0:02:05.5]} 32... Kh4 {[%clk
0:00:58.3]} 33. Kg1 {[%clk 0:01:50.3]} 33... Rg4 {[%clk 0:00:56.9]} 34. Nf2#
{[%clk 0:01:42.6]} 1-0

[Event "Live Chess"]
[Site "Chess.com"]
[Date "2023.05.21"]
[Round "-"]
[White "Shepherds_Pie"]
[Black "ameetghasi100"]
[Result "0-1"]
[WhiteElo "1950"]
[BlackElo "2592"]
[TimeControl "300"]
[EndTime "4:33:58 PDT"]
[Termination "ameetghasi100 won by resignation"]

1. c4 {[%clk 0:04:57.2]} 1... c5 {[%clk 0:04:59.9]} 2. Nc3 {[%clk 0:04:55.8]}
2... Nc6 {[%clk 0:04:59.8]} 3. g3 {[%clk 0:04:54.1]} 3... g6 {[%clk 0:04:59]} 4.
Bg2 {[%clk 0:04:51.7]} 4... h5 {[%clk 0:04:58.9]} 5. h4 {[%clk 0:04:49.5]} 5...
Nh6 {[%clk 0:04:57.3]} 6. a3 {[%clk 0:04:47.5]} 6... Bg7 {[%clk 0:04:53.6]} 7.
b4 {[%clk 0:04:45.7]} 7... cxb4 {[%clk 0:04:51.6]} 8. axb4 {[%clk 0:04:44.7]}
8... Nxb4 {[%clk 0:04:51.5]} 9. Ba3 {[%clk 0:04:41.3]} 9... Nc6 {[%clk
0:04:50.8]} 10. Nf3 {[%clk 0:04:39.1]} 10... O-O {[%clk 0:04:50.1]} 11. d4
{[%clk 0:04:37.2]} 11... d6 {[%clk 0:04:49.4]} 12. O-O {[%clk 0:04:33.3]} 12...
Bg4 {[%clk 0:04:48.9]} 13. e3 {[%clk 0:04:30.2]} 13... Rc8 {[%clk 0:04:47.4]}
14. Qa4 {[%clk 0:04:26]} 14... b6 {[%clk 0:04:44.8]} 15. Nd2 {[%clk 0:04:16.6]}
15... Bd7 {[%clk 0:04:40.4]} 16. Qb3 {[%clk 0:04:09.8]} 16... Na5 {[%clk
0:04:34.3]} 17. Qa2 {[%clk 0:04:08.9]} 17... Nf5 {[%clk 0:04:33.7]} 18. Nd5
{[%clk 0:03:59.4]} 18... e6 {[%clk 0:04:25.5]} 19. Nf4 {[%clk 0:03:56.9]} 19...
e5 {[%clk 0:04:24.4]} 20. dxe5 {[%clk 0:03:53.8]} 20... Bxe5 {[%clk 0:04:22.6]}
21. Nd3 {[%clk 0:03:48.7]} 21... Bxa1 {[%clk 0:04:19.8]} 22. Rxa1 {[%clk
0:03:37.8]} 22... Re8 {[%clk 0:04:07]} 23. Bb2 {[%clk 0:03:35.7]} 23... Be6
{[%clk 0:04:02]} 24. Bd5 {[%clk 0:03:29]} 24... Bxd5 {[%clk 0:03:56.4]} 25. cxd5
{[%clk 0:03:27.7]} 25... Nxe3 {[%clk 0:03:56.3]} 26. fxe3 {[%clk 0:03:17.8]}
26... Rxe3 {[%clk 0:03:56.2]} 27. Nf4 {[%clk 0:03:06.5]} 27... Rxg3+ {[%clk
0:03:48.9]} 28. Ng2 {[%clk 0:03:04.3]} 28... Qxh4 {[%clk 0:03:48.8]} 29. Nf3
{[%clk 0:02:57.2]} 29... Qg4 {[%clk 0:03:41.7]} 30. Bd4 {[%clk 0:02:40.5]} 30...
Qxf3 {[%clk 0:03:38.6]} 31. Rf1 {[%clk 0:02:37.2]} 31... Qe4 {[%clk 0:03:34.6]}
0-1

[Event "Live Chess"]
[Site "Chess.com"]
[Date "2023.05.21"]
[Round "-"]
[White "FlorinHristea"]
[Black "viktorskliarov"]
[Result "0-1"]
[WhiteElo "1814"]
[BlackElo "2653"]
[TimeControl "300"]
[EndTime "4:33:59 PDT"]
[Termination "viktorskliarov won by resignation"]

1. e4 {[%clk 0:04:59.5]} 1... c5 {[%clk 0:04:55.7]} 2. Nf3 {[%clk 0:04:58]} 2...
Nc6 {[%clk 0:04:53.6]} 3. Bc4 {[%clk 0:04:56.9]} 3... g6 {[%clk 0:04:51.6]} 4.
a3 {[%clk 0:04:55.7]} 4... Bg7 {[%clk 0:04:50.5]} 5. d3 {[%clk 0:04:55.4]} 5...
e6 {[%clk 0:04:49.1]} 6. Nc3 {[%clk 0:04:54]} 6... Nge7 {[%clk 0:04:47.9]} 7.
O-O {[%clk 0:04:52.6]} 7... O-O {[%clk 0:04:46.8]} 8. Bd2 {[%clk 0:04:50.6]}
8... d5 {[%clk 0:04:43.1]} 9. exd5 {[%clk 0:04:49.2]} 9... exd5 {[%clk
0:04:42.5]} 10. Ba2 {[%clk 0:04:46.7]} 10... h6 {[%clk 0:04:41.8]} 11. Rb1
{[%clk 0:04:45.5]} 11... Be6 {[%clk 0:04:36.6]} 12. Ne1 {[%clk 0:04:40.9]} 12...
Qd7 {[%clk 0:04:31.7]} 13. Ne2 {[%clk 0:04:34.4]} 13... g5 {[%clk 0:04:13.8]}
14. f4 {[%clk 0:04:31.3]} 14... g4 {[%clk 0:04:12.7]} 15. Ng3 {[%clk 0:04:29.9]}
15... f5 {[%clk 0:03:52.9]} 16. Qe2 {[%clk 0:04:23.8]} 16... Nd4 {[%clk
0:03:48.9]} 17. Qd1 {[%clk 0:04:20.3]} 17... Bf7 {[%clk 0:03:40.8]} 18. c3
{[%clk 0:04:18.9]} 18... Ndc6 {[%clk 0:03:39.3]} 19. Nc2 {[%clk 0:04:12.7]}
19... Rae8 {[%clk 0:03:30.1]} 20. d4 {[%clk 0:04:07.1]} 20... cxd4 {[%clk
0:03:26.6]} 21. Nxd4 {[%clk 0:04:04.9]} 21... Nxd4 {[%clk 0:03:25.7]} 22. cxd4
{[%clk 0:04:04.8]} 22... Bxd4+ {[%clk 0:03:25]} 23. Kh1 {[%clk 0:04:04.7]} 23...
Nc6 {[%clk 0:03:19.2]} 24. Bc3 {[%clk 0:03:55.8]} 24... Bxc3 {[%clk 0:03:15.5]}
25. bxc3 {[%clk 0:03:55.7]} 25... d4 {[%clk 0:03:09.8]} 26. Bxf7+ {[%clk
0:03:54.2]} 26... Rxf7 {[%clk 0:03:08.6]} 27. cxd4 {[%clk 0:03:51.1]} 27... Qxd4
{[%clk 0:03:07.1]} 28. Qb3 {[%clk 0:03:43.6]} 28... Qf6 {[%clk 0:02:49.9]} 29.
Nh5 {[%clk 0:03:35.8]} 29... Qg6 {[%clk 0:02:47.1]} 30. Ng3 {[%clk 0:03:33]}
30... h5 {[%clk 0:02:45.8]} 31. Qc4 {[%clk 0:03:21.3]} 31... h4 {[%clk
0:02:38.6]} 32. Ne2 {[%clk 0:03:18.5]} 32... Qe6 {[%clk 0:02:37.4]} 33. Qxe6
{[%clk 0:03:12.6]} 33... Rxe6 {[%clk 0:02:37.3]} 34. Nc3 {[%clk 0:03:08.3]}
34... Re3 {[%clk 0:02:35.6]} 35. Rfc1 {[%clk 0:02:56.5]} 35... Rd7 {[%clk
0:02:22.2]} 36. Kg1 {[%clk 0:02:47.3]} 36... Rdd3 {[%clk 0:02:06.5]} 37. Nb5
{[%clk 0:02:45.2]} 37... Rb3 {[%clk 0:01:49.8]} 38. Nd4 {[%clk 0:02:36.5]} 38...
Rxb1 {[%clk 0:01:46.4]} 39. Rxb1 {[%clk 0:02:34]} 39... Nxd4 {[%clk 0:01:44.3]}
0-1

[Event "Live Chess"]
[Site "Chess.com"]
[Date "2023.05.21"]
[Round "-"]
[White "yeetpizza74"]
[Black "diana21strabt"]
[Result "0-1"]
[WhiteElo "501"]
[BlackElo "1757"]
[TimeControl "300"]
[EndTime "4:34:00 PDT"]
[Termination "diana21strabt won by checkmate"]

1. e4 {[%clk 0:04:58.4]} 1... d5 {[%clk 0:04:58.8]} 2. exd5 {[%clk 0:04:56.1]}
2... Qxd5 {[%clk 0:04:57.6]} 3. Nc3 {[%clk 0:04:55.7]} 3... Qa5 {[%clk
0:04:55.6]} 4. d4 {[%clk 0:04:51.1]} 4... Nf6 {[%clk 0:04:53.3]} 5. Bf4 {[%clk
0:04:47.7]} 5... Bg4 {[%clk 0:04:51.1]} 6. Nf3 {[%clk 0:04:45.4]} 6... Nc6
{[%clk 0:04:49.7]} 7. Be2 {[%clk 0:04:42.5]} 7... O-O-O {[%clk 0:04:48.5]} 8.
O-O {[%clk 0:04:40.6]} 8... Bxf3 {[%clk 0:04:46.7]} 9. Bxf3 {[%clk 0:04:38.6]}
9... Nxd4 {[%clk 0:04:45.5]} 10. Ne4 {[%clk 0:04:26]} 10... Nxf3+ {[%clk
0:04:41.6]} 11. Qxf3 {[%clk 0:04:23.8]} 11... Nxe4 {[%clk 0:04:40.4]} 12. Qxe4
{[%clk 0:04:21.7]} 12... e6 {[%clk 0:04:39.2]} 13. Bg3 {[%clk 0:04:14.4]} 13...
Bd6 {[%clk 0:04:36.7]} 14. Bxd6 {[%clk 0:04:11.8]} 14... Rxd6 {[%clk 0:04:35.4]}
15. Rad1 {[%clk 0:04:08.8]} 15... Rxd1 {[%clk 0:04:29.2]} 16. Rxd1 {[%clk
0:04:07.5]} 16... Qxa2 {[%clk 0:04:25.6]} 17. Qd3 {[%clk 0:04:01.3]} 17... b6
{[%clk 0:04:01.8]} 18. Qd7+ {[%clk 0:03:54.1]} 18... Kb8 {[%clk 0:03:55.8]} 19.
Qxf7 {[%clk 0:03:40.8]} 19... Qxb2 {[%clk 0:03:49.6]} 20. Qxg7 {[%clk 0:03:36]}
20... Qxg7 {[%clk 0:03:46.2]} 21. c3 {[%clk 0:03:30.5]} 21... Qxc3 {[%clk
0:03:43.4]} 22. Ra1 {[%clk 0:03:23.2]} 22... Qxa1# {[%clk 0:03:41.1]} 0-1